Cogmind - Beta 11.1 @@@ ROGUE MODE // 2022.11.11 @ 21:59:13 Player: ILikeMonsters1890 Result: Destroyed by Svarog with Nova Cannon Performance ------------- Evolutions (5) 2500 Regions Visited (17) 3400 Robots Destroyed (75) 375 Value Destroyed (1644) 1644 Prototype IDs (53) 1060 Alien Tech Used (3) 600 Bonus (559) 559 TOTAL SCORE: 10138 Bonus ------- Follower Combat Kills 37 Aligned with FarCom 300 Met Zhirov 300 Friendly Fire -78 Cogmind --------- Core Integrity 0/1000 Matter 285/300 Energy 72/100 System Corruption 8% Temperature Cool (18) Movement Flying (35) Location -5/Zhirov Parts ------- > --- POWER (1) -------- (None) > --- PROPULSION (5) --- Cooled VTOL Module > --- UTILITY (9) ------ Improved Signal Interpreter Experimental Power Shielding Advanced Hacking Suite System Shield Improved System Shield > --- WEAPON (2) ------- Phasing Sabre > --- INVENTORY (5) ---- Micro Nuclear Core Cooled Airjet Experimental Sensor Array Improved Actuator Array Peak State ------------ > --- POWER ------------ Heavy Antimatter Reactor > --- PROPULSION ------- Xenon Bombardment Thruster Cooled VTOL Module Cooled VTOL Module Cooled VTOL Module > --- UTILITY ---------- Improved Signal Interpreter Seismic Detector Experimental Power Shielding Propulsion Shielding Advanced Hacking Suite System Shield Improved System Shield > --- WEAPON ----------- Phasing Sabre > --- INVENTORY -------- Micro Nuclear Core Light Fission Core Cooled Airjet Experimental Sensor Array Phasing Sabre [Rating: 60] Favorites ----------- Power Micro Nuclear Core Engine Light Ion Engine Power Core Micro Nuclear Core Reactor Heavy Antimatter Reactor Propulsion Wheel Treads Armored Medium Treads Wheel Wheel Hover Unit Improved Hover Unit Flight Unit Xenon Bombardment Thruster Utility Improved Signal Interpreter Device Seismic Detector Storage Small Storage Unit Processor Improved Signal Interpreter Hackware Improved System Shield Protection Propulsion Shielding Weapon Flail Energy Gun Spread Laser Ballistic Gun Light Assault Rifle Launcher Grenade Launcher Impact Weapon Flail Slashing Weapon Mining Claw Build | -11 -10 -10 -9 -9 -9 -8 -8 -7 -6 -6 -6 -6 -6 -5 -5 -5 -5 ------- Run | Scr Mat Min Mat Min Exi Min Mat Fac Fac Ext Cet Arc Hub Fac Upp Upp Zhi Slots Evolved 10 | . . . 2 . . . 2 2 2 . . . . 2 . . . Power . | . . . . . . . . . . . . . . . . . . Propulsion 3 | . . . 1 . . . 1 1 . . . . . . . . . Utility 7 | . . . 1 . . . 1 1 2 . . . . 2 . . . Weapon . | . . . . . . . . . . . . . . . . . . Parts Attached 120 | 10 2 8 26 5 . . 10 16 5 6 . . 8 15 2 . 7 Power 15 | 1 1 1 3 . . . 1 2 1 . . . 1 1 1 . 2 Engine 6 | 1 1 1 3 . . . . . . . . . . . . . . Core 8 | . . . . . . . 1 2 1 . . . 1 1 1 . 1 Reactor 1 | . . . . . . . . . . . . . . . . . 1 Propulsion 37 | 4 . 2 9 3 . . 4 8 . . . . 1 6 . . . Treads 1 | . . . . . . . . . . . . . . 1 . . . Leg . | . . . . . . . . . . . . . . . . . . Wheel 19 | 4 . 2 9 . . . 1 3 . . . . . . . . . Hover 5 | . . . . 3 . . 1 1 . . . . . . . . . Flight 12 | . . . . . . . 2 4 . . . . 1 5 . . . Utility 41 | 3 1 1 5 2 . . 5 3 2 4 . . 6 5 . . 4 Device 19 | 2 . . 4 . . . 1 . 1 3 . . 3 4 . . 1 Storage 5 | 1 1 . . 1 . . 1 . . . . . . . . . 1 Processor 7 | . . . . 1 . . 2 3 . 1 . . . . . . . Hackware 4 | . . . . . . . . . . . . . 2 1 . . 1 Protection 6 | . . 1 1 . . . 1 . 1 . . . 1 . . . 1 Artifact . | . . . . . . . . . . . . . . . . . . Weapon 27 | 2 . 4 9 . . . . 3 2 2 . . . 3 1 . 1 Energy Gun 4 | . . 1 3 . . . . . . . . . . . . . . Energy Cannon . | . . . . . . . . . . . . . . . . . . Ballistic Gun 8 | 2 . 1 3 . . . . . . . . . . 2 . . . Ballistic Cannon . | . . . . . . . . . . . . . . . . . . Launcher 4 | . . 2 . . . . . 1 . 1 . . . . . . . Special Weapon . | . . . . . . . . . . . . . . . . . . Impact Weapon 8 | . . . 2 . . . . 2 2 1 . . . 1 . . . Slashing Weapon 3 | . . . 1 . . . . . . . . . . . 1 . 1 Piercing Weapon . | . . . . . . . . . . . . . . . . . . Special Melee Weapon . | . . . . . . . . . . . . . . . . . . Unidentified Prototypes 13 | . . . 1 . . . 2 2 . . . . . 1 . 1 6 Parts Lost 41 | . . 4 9 . . . 5 1 1 4 1 4 3 . 1 1 7 Power 4 | . . 1 1 . . . 1 . . . . . . . . . 1 Propulsion 18 | . . . 7 . . . 4 . . 2 . 1 1 . . . 3 Utility 15 | . . 1 1 . . . . 1 . 2 1 3 2 . 1 1 2 Weapon 4 | . . 2 . . . . . . 1 . . . . . . . 1 Highest Loss Streak 7 | . . 4 5 . . . 4 1 1 3 1 5 3 . 1 2 7 To Critical Strikes . | . . . . . . . . . . . . . . . . . . Average Slot Usage (%) 84 | . 100 97 94 99 100 100 86 86 92 81 50 33 34 67 76 64 63 Engine 4 | . 14 13 10 11 11 11 . . . . . . . . . . . Core 3 | . . . . . . . 6 5 6 4 . . 4 4 5 5 4 Wheel 9 | . 28 28 31 . . . 1 6 . . . . . . . . . Hover 5 | . . . . 32 33 33 25 . . . . . . . . . . Flight 11 | . . . . . . . 2 20 26 23 13 9 10 17 23 23 20 Device 7 | . 14 7 10 11 11 11 4 1 6 6 10 3 8 16 17 5 4 Storage 7 | . 14 14 11 11 11 11 9 7 6 6 6 3 . . . . . Processor 13 | . . . . 10 11 11 17 27 26 25 20 16 6 5 5 5 5 Hackware 1 | . . . . . . . . . . . . . 1 9 11 11 13 Protection 2 | . . 4 7 . . . . . 6 1 . . 1 5 5 5 6 Energy Gun 1 | . . 5 6 . . . . . . . . . . . . . . Ballistic Gun 3 | . 28 21 4 . . . . . . . . . . 4 . . . Impact Weapon 8 | . . . . 22 22 22 18 14 12 10 . . . . 1 . . Slashing Weapon 1 | . . . 9 . . . . . . . . . . . 3 5 4 Naked Turns . | . . . . . . . . . . . . . . . . . . Heaviest Build 27 | 11 18 20 27 19 19 19 26 15 18 22 10 9 9 15 14 14 16 Greatest Support 42 | 26 20 20 42 21 21 21 28 28 22 22 11 11 12 21 15 15 21 Greatest Overweight (x) 1 | . . . 1 . . . 1 . . . . . 1 . . . . Average Overweight (x) . | . . . . . . . . . . . . . . . . . . Largest Inventory Capacity 10 | 8 10 10 10 10 10 10 10 8 8 8 8 8 5 5 5 5 5 Average Capacity 8 | 7 9 10 10 10 10 10 9 8 8 8 8 6 5 5 5 5 5 Most Carried 10 | 8 10 10 10 10 10 10 10 8 8 8 8 8 5 5 5 5 5 Average Carried 7 | 4 9 8 9 9 9 9 9 7 7 6 8 6 4 4 4 4 4 Final Capacity 10 | 8 10 10 10 10 10 10 8 8 8 8 8 5 5 5 5 5 5 Final Carried 10 | 8 10 8 10 10 10 10 8 8 7 8 8 5 5 5 5 5 4 Class Distribution -------------------- 57% | Mutant 15% | Scavenger-Mutant 10% | Scout 10% | Hacker-Sprinter 4% | Sprinter Dominant Class ---------------- Mutant | -10/Materials Mutant | -10/Mines Scavenger-Mutant | -9/Materials Mutant | -9/Mines Mutant | -9/Exiles Mutant | -8/Mines Mutant | -8/Materials Mutant | -7/Factory Scout | -6/Factory Sprinter | -6/Extension Sprinter | -6/Cetus Sprinter | -6/Archives Mutant | -6/Hub_04(d) Hacker-Sprinter | -5/Factory Hacker-Sprinter | -5/Upper Caves Hacker-Sprinter | -5/Upper Caves Hacker-Sprinter | -5/Zhirov Resources | -11 -10 -10 -9 -9 -9 -8 -8 -7 -6 -6 -6 -6 -6 -5 -5 -5 -5 ----------- Run | Scr Mat Min Mat Min Exi Min Mat Fac Fac Ext Cet Arc Hub Fac Upp Upp Zhi Matter Collected 1636 | 352 28 93 331 55 . 14 90 135 60 99 . . . 26 222 20 111 Remotely . | . . . . . . . . . . . . . . . . . . Salvage Created 2887 | 215 146 51 1002 150 . 153 655 208 68 87 . . . 41 . . 111 Parts 112 | 19 9 1 48 3 . 5 14 5 5 1 . . . . . . 2 Haulers Intercepted 6 | . 1 . 4 . . . 1 . . . . . . . . . . Recyclers Shooed 2 | . . . 1 . . . 1 . . . . . . . . . . Parts Field Recycled . | . . . . . . . . . . . . . . . . . . Retrieved Matter . | . . . . . . . . . . . . . . . . . . Parts Self-Destructed 1 | . . . . . . . . . . . . . . . 1 . . Prevented 2 | . . . . . . . . . . . . . . . 2 . . Kills | -11 -10 -10 -9 -9 -9 -8 -8 -7 -6 -6 -6 -6 -6 -5 -5 -5 -5 ------- Run | Scr Mat Min Mat Min Exi Min Mat Fac Fac Ext Cet Arc Hub Fac Upp Upp Zhi Combat Hostiles Destroyed 55 | . 2 20 15 2 . 4 7 2 1 1 . . . 1 . . . Melee 25 | . . . 15 2 . 3 3 1 1 . . . . . . . . Guns 5 | . 2 2 . . . . . . . . . . . 1 . . . AOE 19 | . . 18 . . . . . . . 1 . . . . . . . Classes Destroyed 15 | 3 2 2 6 . . . 1 1 . . . . . . . . . Worker 7 | 2 . . 2 1 . . 1 1 . . . . . . . . . Builder 4 | . . . 1 . . 1 . . . 1 . . . 1 . . . Tunneler 7 | 5 . . . 1 . 1 . . . . . . . . . . . Hauler 6 | . 1 . 4 . . . 1 . . . . . . . . . . Recycler 10 | 1 . . 2 1 . 1 3 2 . . . . . . . . . Operator 2 | . . . 1 . . . . . . 1 . . . . . . . Watcher 2 | . . . 1 . . . . . 1 . . . . . . . . Swarmer 13 | . . . 6 2 . 4 . . . . . . . 1 . . . Grunt 12 | . 2 . 4 . . . 6 . . . . . . . . . . Duelist 1 | . . . 1 . . . . . . . . . . . . . . Sentry 6 | . . . 4 . . . . 1 . 1 . . . . . . . Demolisher 2 | . . 2 . . . . . . . . . . . . . . . Hunter 1 | . . . . . . . 1 . . . . . . . . . . Programmer 2 | . . . . . . . . 1 1 . . . . . . . . Assembled 18 | . . 18 . . . . . . . . . . . . . . . Best Kill Streak 20 | 3 2 20 7 2 . 7 4 1 1 1 . . . 2 . . . Combat Bots Only 20 | . 1 20 4 2 . 4 4 1 1 1 . . . 1 . . . Max Kills in Single Turn 8 | 1 1 8 1 1 . 1 1 1 1 1 . . . 1 . . . Gunslinging . | . . . . . . . . . . . . . . . . . . Exploded 8 | . . 8 . . . . . . . 1 . . . . . . . Melee 1 | . . . 1 1 . 1 1 1 1 . . . . . . . . Uniques/NPCs Destroyed . | . . . . . . . . . . . . . . . . . . Combat | -11 -10 -10 -9 -9 -9 -8 -8 -7 -6 -6 -6 -6 -6 -5 -5 -5 -5 -------- Run | Scr Mat Min Mat Min Exi Min Mat Fac Fac Ext Cet Arc Hub Fac Upp Upp Zhi Damage Taken 5628 | . 28 537 991 41 . 41 468 583 382 516 91 285 274 159 104 28 1100 Core 2339 | . . 235 265 10 . . 155 189 69 126 36 190 128 52 22 . 862 Absorbed by Shields . | . . . . . . . . . . . . . . . . . . Redirected to Shielding 166 | . . . . . . . . . 90 20 . . 15 24 . . 17 Regen/Repaired (Parts) 180 | . . . . . . . . 180 . . . . . . . . . Core Remaining (%) 52 | 100 . 6 . . . 31 71 73 . . . . 35 . . . . Volleys Fired 71 | 26 11 10 9 . . . . . . 3 . . . 12 . . . Largest 2 | 2 2 2 2 . . . . . . 1 . . . 1 . . . Hottest 65 | 40 40 50 65 . . . . . . 36 . . . 30 . . . Shots Fired 114 | 52 22 12 12 . . . . . . 3 . . . 13 . . . Gun 106 | 52 22 7 12 . . . . . . . . . . 13 . . . Cannon . | . . . . . . . . . . . . . . . . . . Launcher 8 | . . 5 . . . . . . . 3 . . . . . . . Special . | . . . . . . . . . . . . . . . . . . Kinetic 104 | 52 22 7 10 . . . . . . . . . . 13 . . . Thermal 2 | . . . 2 . . . . . . . . . . . . . . Explosive 8 | . . 5 . . . . . . . 3 . . . . . . . Electromagnetic . | . . . . . . . . . . . . . . . . . . Robot Hit Streak 13 | 10 13 7 1 . . . . . . 3 . . . 5 . . . Robot Miss Streak 3 | 3 1 3 3 . . . . . . . . . . 3 . . . Penetration Max . | . . . . . . . . . . . . . . . . . . Secondary Targets . | . . . . . . . . . . . . . . . . . . Shots Hit Robots 203 | 32 16 9 56 6 . 7 30 22 9 7 . . . 6 . . 3 Core Hits 112 | 15 8 48 24 1 . 1 7 3 2 1 . . . 1 . . 1 Critical Kills 3 | . . . . . . . 2 1 . . . . . . . . . Critical Parts Destroyed 8 | . 1 . . . . 1 3 . . 1 . . . 2 . . . Critical Strikes 11 | . 1 . . . . 1 5 1 . 1 . . . 2 . . . Destroy 3 | . 1 . . . . . . . . . . . . 2 . . . Smash 8 | . . . . . . 1 5 1 . 1 . . . . . . . Melee Attacks 304 | . . . 82 12 . 11 45 50 83 16 . . . . . 1 4 Impact 219 | . . . 2 12 . 11 45 50 83 16 . . . . . . . Slashing 85 | . . . 80 . . . . . . . . . . . . 1 4 Piercing . | . . . . . . . . . . . . . . . . . . Sneak Attacks 31 | . . . 11 3 . 3 7 4 . 2 . . . . . . 1 Combat Hostiles 2 | . . . 1 . . . 1 . . . . . . . . . . Follow-up Attacks 7 | . . . . . . 1 3 1 1 1 . . . . . . . Damage Inflicted 7122 | 269 134 1211 1500 350 . 339 1313 818 400 310 . . . 259 . . 219 Guns 641 | 269 134 49 60 . . . . . . . . . . 129 . . . Cannons . | . . . . . . . . . . . . . . . . . . Explosions 1353 | . . 1162 . . . . . . . 61 . . . 130 . . . Melee 5064 | . . . 1440 350 . 339 1313 818 336 249 . . . . . . 219 Ramming 64 | . . . . . . . . . 64 . . . . . . . . Kinetic 641 | 269 134 49 60 . . . . . . . . . . 129 . . . Thermal . | . . . . . . . . . . . . . . . . . . Explosive 1353 | . . 1162 . . . . . . . 61 . . . 130 . . . Electromagnetic . | . . . . . . . . . . . . . . . . . . Impact 3426 | . . . 21 350 . 339 1313 818 336 249 . . . . . . . Slashing 1638 | . . . 1419 . . . . . . . . . . . . . 219 Piercing . | . . . . . . . . . . . . . . . . . . Highest Corruption 8 | . . . 3 3 3 3 . . 2 2 2 2 2 5 5 5 8 Average Corruption 3 | . . . 2 3 3 3 . . 2 2 2 2 2 5 5 5 5 Corruption Purged . | . . . . . . . . . . . . . . . . . . Corruption Blocked . | . . . . . . . . . . . . . . . . . . Effects 58 | . . . 16 5 2 3 . . 2 3 . . 7 11 4 1 4 Message Errors 9 | . . . 2 . 1 . . . . . . . 2 2 2 . . Matter Fused 14 | . . . 3 2 . 1 . . 1 . . . 2 2 . . 3 Heat Flow Errors 11 | . . . 3 2 1 . . . . 1 . . 1 2 . 1 . Energy Discharges 6 | . . . 4 . . 1 . . . 1 . . . . . . . Data Loss (minor) 9 | . . . 1 . . 1 . . 1 1 . . 2 1 2 . . Data Loss (major) 2 | . . . . . . . . . . . . . . 1 . . 1 Misfires 4 | . . . 2 . . . . . . . . . . 2 . . . Alerts 2 | . . . 1 1 . . . . . . . . . . . . . Weapon Failures 1 | . . . . . . . . . . . . . . 1 . . . Overload Shots . | . . . . . . . . . . . . . . . . . . Overflow Damage 1186 | . . 8 83 165 . 176 326 111 45 163 . . . 67 . . 42 Projectiles 3 | . . . . 3 . . . . . . . . . . . . . Explosions 75 | . . 8 . . . . . . . . . . . 67 . . . Melee 1108 | . . . 83 162 . 176 326 111 45 163 . . . . . . 42 Knockbacks 17 | . . . . 4 . 1 8 3 . 1 . . . . . . . Impact 16 | . . . . 3 . 1 8 3 . 1 . . . . . . . Kinetic . | . . . . . . . . . . . . . . . . . . Secondary 1 | . . . . 1 . . . . . . . . . . . . . Self-Inflicted Damage 176 | . . 37 . . . . . . 64 . . . . 75 . . . Shots 2 | . . 1 . . . . . . . . . . . 1 . . . Rammed . | . . . . . . . . . . . . . . . . . . Targets Rammed . | . . . . . . . . . . . . . . . . . . Kicked . | . . . . . . . . . . . . . . . . . . Crushed . | . . . . . . . . . . . . . . . . . . Highest Temperature 253 | . 9 . 253 138 124 . . . 4 141 . . 80 136 . 220 . Average Temperature 82 | . 9 . 103 61 70 . . . 4 59 . . 47 64 . 121 . Received Heat Transfer 873 | . 18 . 186 . . . 153 72 12 180 18 54 54 . 18 9 99 Effects 1 | . . . . . . . . . . . . . . . . 1 . Energy Bleed 1 | . . . . . . . . . . . . . . . . 1 . Siege Activations . | . . . . . . . . . . . . . . . . . . Robots Corrupted . | . . . . . . . . . . . . . . . . . . Combat Hostiles . | . . . . . . . . . . . . . . . . . . Parts Fried 20 | . . . . 4 . 7 3 1 . 5 . . . . . . . Impact Corruptions 47 | . . . . 9 . 9 14 6 3 6 . . . . . . . Robots Melted . | . . . . . . . . . . . . . . . . . . Combat Hostiles . | . . . . . . . . . . . . . . . . . . Parts Melted . | . . . . . . . . . . . . . . . . . . Heat Transferred . | . . . . . . . . . . . . . . . . . . Parts Sabotaged . | . . . . . . . . . . . . . . . . . . Parts Stolen . | . . . . . . . . . . . . . . . . . . Parts Stripped . | . . . . . . . . . . . . . . . . . . Power Chain Reactions . | . . . . . . . . . . . . . . . . . . Missiles Intercepted . | . . . . . . . . . . . . . . . . . . Alert | -11 -10 -10 -9 -9 -9 -8 -8 -7 -6 -6 -6 -6 -6 -5 -5 -5 -5 ------- Run | Scr Mat Min Mat Min Exi Min Mat Fac Fac Ext Cet Arc Hub Fac Upp Upp Zhi Peak Influence 528 | 40 154 117 362 236 . 120 148 109 188 271 151 97 158 528 . . . Initial 151 | . 26 60 27 141 . . 46 30 . 40 151 59 23 77 . . . Average 97 | 17 112 65 147 185 . 51 56 39 53 138 148 73 42 276 . . . Maximum Alert Level 2 | . . . 1 1 . . . . . 1 . . . 2 . . . Low Security (%) 87 | 100 100 100 69 54 . 100 100 100 100 87 100 100 100 50 . . . Level 1 9 | . . . 30 45 . . . . . 12 . . . 16 . . . Level 2 2 | . . . . . . . . . . . . . . 33 . . . Level 3 . | . . . . . . . . . . . . . . . . . . Level 4 . | . . . . . . . . . . . . . . . . . . Level 5 . | . . . . . . . . . . . . . . . . . . High Security . | . . . . . . . . . . . . . . . . . . Max Security . | . . . . . . . . . . . . . . . . . . Squads Dispatched 17 | . 1 . 3 . . . . 4 3 2 . . 3 . . 1 . Investigation 3 | . . . 1 . . . . 2 . . . . . . . . . Extermination 4 | . . . . . . . . 2 1 . . . 1 . . . . Reinforcement 9 | . 1 . 2 . . . . . 2 2 . . 2 . . . . Assault 1 | . . . . . . . . . . . . . . . . 1 . Garrison . | . . . . . . . . . . . . . . . . . . Intercept . | . . . . . . . . . . . . . . . . . . Searches Triggered . | . . . . . . . . . . . . . . . . . . Construction Impeded . | . . . . . . . . . . . . . . . . . . Haulers Reinforced . | . . . . . . . . . . . . . . . . . . Active Scanning Responses . | . . . . . . . . . . . . . . . . . . Cargo Convoy Interrupts . | . . . . . . . . . . . . . . . . . . Stealth | -11 -10 -10 -9 -9 -9 -8 -8 -7 -6 -6 -6 -6 -6 -5 -5 -5 -5 --------- Run | Scr Mat Min Mat Min Exi Min Mat Fac Fac Ext Cet Arc Hub Fac Upp Upp Zhi Distress Signals 10 | . . . 5 . . . 3 . . . 1 . 1 . . . . Communications Jammed . | . . . . . . . . . . . . . . . . . . Distress Signals . | . . . . . . . . . . . . . . . . . . Times Spotted 180 | . 4 23 43 4 . 4 11 8 19 21 5 4 12 10 8 1 3 Peak Tracking Total 18 | . 2 18 6 3 . 4 6 3 7 12 5 4 6 3 5 10 3 Tactical Retreats 33 | . 1 . 8 1 . . 2 1 6 4 . . 3 2 2 3 . Traps | -11 -10 -10 -9 -9 -9 -8 -8 -7 -6 -6 -6 -6 -6 -5 -5 -5 -5 ------- Run | Scr Mat Min Mat Min Exi Min Mat Fac Fac Ext Cet Arc Hub Fac Upp Upp Zhi Traps Triggered 8 | . . . 1 . . . . 2 1 . . . . 4 . . . Indirectly . | . . . . . . . . . . . . . . . . . . Trap Hack Attempts . | . . . . . . . . . . . . . . . . . . Triggered . | . . . . . . . . . . . . . . . . . . Disarmed . | . . . . . . . . . . . . . . . . . . Reprogrammed 1 | . . . . . . . . . . . . . 1 . . . . Reused . | . . . . . . . . . . . . . . . . . . Traps Extracted . | . . . . . . . . . . . . . . . . . . Installed . | . . . . . . . . . . . . . . . . . . Triggered 1 | . . . . . . . . . . . . . . . 1 . . Machines | -11 -10 -10 -9 -9 -9 -8 -8 -7 -6 -6 -6 -6 -6 -5 -5 -5 -5 ---------- Run | Scr Mat Min Mat Min Exi Min Mat Fac Fac Ext Cet Arc Hub Fac Upp Upp Zhi Machines Disabled 17 | . . . . . . . . . . 1 . . . 14 . 1 1 Max in Single Turn 6 | . . . . . . . . . . 1 . . . 6 . 1 1 Garrison Access 3 | . . . . . . . . . 2 . . . 1 . . . . Machines Sabotaged . | . . . . . . . . . . . . . . . . . . Garrisons Compromised . | . . . . . . . . . . . . . . . . . . Overloaded Fab Kills . | . . . . . . . . . . . . . . . . . . Hacking | -11 -10 -10 -9 -9 -9 -8 -8 -7 -6 -6 -6 -6 -6 -5 -5 -5 -5 --------- Run | Scr Mat Min Mat Min Exi Min Mat Fac Fac Ext Cet Arc Hub Fac Upp Upp Zhi Machines Accessed 72 | . 5 1 7 . 2 . 2 15 10 5 1 . 6 7 1 1 9 Terminals 36 | . 4 . 4 . . . 2 6 4 5 1 . 5 5 . . . Fabricators 7 | . . . . . . . . 4 2 . . . . 1 . . . Repair Stations 3 | . . . . . . . . 2 1 . . . . . . . . Recycling Units 4 | . 1 . 2 . . . . 1 . . . . . . . . . Scanalyzers 4 | . . . 1 . . . . 1 1 . . . . 1 . . . Garrison Access 4 | . . . . . . . . 1 2 . . . 1 . . . . Total Hacks 204 | . 17 1 20 . 5 . 4 37 23 14 1 . 12 20 1 1 48 Successful 126 | . 11 1 7 . 5 . 2 21 10 4 1 . 6 8 1 1 48 Failed 78 | . 6 . 13 . . . 2 16 13 10 . . 6 12 . . . Catastrophic 19 | . 3 . 3 . . . . 4 1 1 . . 3 4 . . . Database Lockouts . | . . . . . . . . . . . . . . . . . . Manual 35 | . 9 . 3 . 1 . . 7 3 5 1 . 1 5 . . . Terminals 93 | . 14 . 8 . . . 4 14 11 14 1 . 11 16 . . . Fabricators 13 | . . . . . . . . 5 7 . . . . 1 . . . Repair Stations 11 | . . . . . . . . 10 1 . . . . . . . . Recycling Units 12 | . 3 . 5 . . . . 4 . . . . . . . . . Scanalyzers 14 | . . . 7 . . . . 2 2 . . . . 3 . . . Garrison Access 5 | . . . . . . . . 2 2 . . . 1 . . . . Terminal Hacks 92 | . 8 1 1 . 5 . 2 6 4 4 1 . 5 5 1 1 48 Record 42 | . . . . . 4 . . . . . . . 1 . . 1 36 Part Schematic 5 | . . . . . . . . . . . . . . 1 . . 4 Robot Analysis 8 | . 2 . 1 . . . . . . . . . . 1 . . 4 Prototype ID Bank 8 | . 1 . . . . . 1 . 1 1 . . . . . . 4 Open Door 4 | . . 1 . . . . . . . 1 1 . . . 1 . . Open DSF 2 | . . . . . . . . 1 . . . . . 1 . . . Branch Access Points 4 | . 1 . . . . . . 1 1 1 . . . . . . . Emergency Access Points 2 | . . . . . . . . . . . . . 1 1 . . . Alert Level 2 | . 1 . . . . . . . . . . . 1 . . . . Unreport Threat 1 | . . . . . . . . . 1 . . . . . . . . Locate Traps 3 | . . . . . . . 1 . . 1 . . . 1 . . . Reprogram Traps 1 | . . . . . . . . . . . . . 1 . . . . Dispatch Records 2 | . 1 . . . . . . . 1 . . . . . . . . Recall Investigation 1 | . . . . . . . . 1 . . . . . . . . . Recall Extermination 2 | . . . . . . . . 1 . . . . 1 . . . . Zone Layout 4 | . 2 . . . . . . 2 . . . . . . . . . EX-Prototype ID Bank 1 | . . . . . 1 . . . . . . . . . . . . Fabricator Hacks 6 | . . . . . . . . 3 2 . . . . 1 . . . Network Status 1 | . . . . . . . . 1 . . . . . . . . . Build 5 | . . . . . . . . 2 2 . . . . 1 . . . Repair Station Hacks 8 | . . . . . . . . 8 . . . . . . . . . Scan Component 4 | . . . . . . . . 4 . . . . . . . . . Repair 4 | . . . . . . . . 4 . . . . . . . . . Recycling Unit Hacks 3 | . 1 . 1 . . . . 1 . . . . . . . . . Retrieve Components 3 | . 1 . 1 . . . . 1 . . . . . . . . . Scanalyzer 6 | . . . 3 . . . . 1 1 . . . . 1 . . . Insert Component 4 | . . . 1 . . . . 1 1 . . . . 1 . . . Analyze 2 | . . . 2 . . . . . . . . . . . . . . Garrison Access Hacks 3 | . . . . . . . . . 2 . . . 1 . . . . Seal Access 3 | . . . . . . . . . 2 . . . 1 . . . . Unauthorized Hacks 8 | . 2 . 2 . . . . 2 1 . . . . 1 . . . Terminals 1 | . . . . . . . . . . . . . . 1 . . . Assimilate 1 | . . . . . . . . . . . . . . 1 . . . Fabricators . | . . . . . . . . . . . . . . . . . . Repair Stations 1 | . . . . . . . . . 1 . . . . . . . . Mechanics 1 | . . . . . . . . . 1 . . . . . . . . Recycling Units 6 | . 2 . 2 . . . . 2 . . . . . . . . . Reject 3 | . 1 . 1 . . . . 1 . . . . . . . . . Mask 3 | . 1 . 1 . . . . 1 . . . . . . . . . Scanalyzers . | . . . . . . . . . . . . . . . . . . Garrison Access . | . . . . . . . . . . . . . . . . . . Data Cores Recovered . | . . . . . . . . . . . . . . . . . . Used . | . . . . . . . . . . . . . . . . . . Hacking Detections 49 | . 4 . 6 . . . 2 12 8 5 2 . 5 5 . . . Full Trace Events 2 | . . . 1 . . . . 1 . . . . . . . . . Feedback Events . | . . . . . . . . . . . . . . . . . . Feedback Blocked . | . . . . . . . . . . . . . . . . . . Robot Schematics Acquired . | . . . . . . . . . . . . . . . . . . Robots Built . | . . . . . . . . . . . . . . . . . . Authchips . | . . . . . . . . . . . . . . . . . . Time . | . . . . . . . . . . . . . . . . . . Total Robot Build Rating . | . . . . . . . . . . . . . . . . . . Part Schematics Acquired 5 | . . . . . . . . . . . . . . 1 . . 4 Parts Built 5 | . . . . . . . . 2 2 . . . . 1 . . . Authchips . | . . . . . . . . . . . . . . . . . . Time 505 | . . . . . . . . 218 181 . . . . 106 . . . Total Part Build Rating 28 | . . . . . . . . 8 14 . . . . 6 . . . Parts Repaired 4 | . . . . . . . . 4 . . . . . . . . . Time 263 | . . . . . . . . 263 . . . . . . . . . Parts Recycled . | . . . . . . . . . . . . . . . . . . Recycled Matter . | . . . . . . . . . . . . . . . . . . Retrieved Matter . | . . . . . . . . . . . . . . . . . . Retrieved Components 22 | . 10 . 10 . . . . 2 . . . . . . . . . Parts Scanalyzed 2 | . . . 1 . . . . . 1 . . . . . . . . Part Schematics Acquired . | . . . . . . . . . . . . . . . . . . Parts Damaged . | . . . . . . . . . . . . . . . . . . Bothacking | -11 -10 -10 -9 -9 -9 -8 -8 -7 -6 -6 -6 -6 -6 -5 -5 -5 -5 ------------ Run | Scr Mat Min Mat Min Exi Min Mat Fac Fac Ext Cet Arc Hub Fac Upp Upp Zhi Used RIF Installer . | . . . . . . . . . . . . . . . . . . Robots Hacked . | . . . . . . . . . . . . . . . . . . Non-combat . | . . . . . . . . . . . . . . . . . . Combat . | . . . . . . . . . . . . . . . . . . Robot Hacks Applied . | . . . . . . . . . . . . . . . . . . Relay Couplers Released . | . . . . . . . . . . . . . . . . . . Fabnet Peak Effective % . | . . . . . . . . . . . . . . . . . . Robots Rewired . | . . . . . . . . . . . . . . . . . . Allies Hacked . | . . . . . . . . . . . . . . . . . . Hacks Repelled . | . . . . . . . . . . . . . . . . . . Allies | -11 -10 -10 -9 -9 -9 -8 -8 -7 -6 -6 -6 -6 -6 -5 -5 -5 -5 -------- Run | Scr Mat Min Mat Min Exi Min Mat Fac Fac Ext Cet Arc Hub Fac Upp Upp Zhi Total Allies 6 | . . 3 . . . . . . . 2 . . . 1 . . . Largest Group 3 | . . 3 . . . . . . . 2 . . . 1 1 . . Highest-Rated Group 62 | . . 40 . . . . . . . 62 . . . 26 26 . . Highest-Rated Ally 31 | . . 16 . . . . . . . 31 . . . 26 26 . . Total Orders . | . . . . . . . . . . . . . . . . . . Ally Attacks 18 | . . 9 . . . . . . . 9 . . . . . . . Total Damage 203 | . . 56 . . . . . . . 147 . . . . . . . Kills 3 | . . 2 . . . . . . . 1 . . . . . . . Allies Corrupted . | . . . . . . . . . . . . . . . . . . Allies Melted . | . . . . . . . . . . . . . . . . . . Intel | -11 -10 -10 -9 -9 -9 -8 -8 -7 -6 -6 -6 -6 -6 -5 -5 -5 -5 ------- Run | Scr Mat Min Mat Min Exi Min Mat Fac Fac Ext Cet Arc Hub Fac Upp Upp Zhi Robot Analysis Total 8 | . 2 . 1 . . . . . . . . . . 1 . . 4 Derelict Logs Recovered 3 | . . . . 1 . . . . . . . . . . 2 . . Drone Launches . | . . . . . . . . . . . . . . . . . . Drone Recoveries . | . . . . . . . . . . . . . . . . . . Exploration | -11 -10 -10 -9 -9 -9 -8 -8 -7 -6 -6 -6 -6 -6 -5 -5 -5 -5 ------------- Run | Scr Mat Min Mat Min Exi Min Mat Fac Fac Ext Cet Arc Hub Fac Upp Upp Zhi Turns Passed 6468 | 289 216 297 1054 291 221 71 652 1216 616 290 35 17 391 474 153 74 111 Spaces Moved 8092 | 234 192 314 661 437 423 63 281 1159 1270 576 89 48 469 957 483 223 213 Core 19 | 19 . . . . . . . . . . . . . . . . . Treads . | . . . . . . . . . . . . . . . . . . Legs . | . . . . . . . . . . . . . . . . . . Wheels 1398 | 215 192 314 661 . . . 14 2 . . . . . . . . . Hover 1086 | . . . . 437 423 63 163 . . . . . . . . . . Flight 5589 | . . . . . . . 104 1157 1270 576 89 48 469 957 483 223 213 Fastest Speed 27 | 50 80 80 80 52 52 52 39 28 28 28 32 32 34 27 29 29 27 Average Speed 43 | 80 80 80 81 52 52 52 48 39 28 28 32 33 37 32 29 29 28 Slowest Speed 120 | 90 80 80 95 52 52 52 112 100 28 32 32 35 120 40 29 29 35 Overloaded Moves . | . . . . . . . . . . . . . . . . . . Propulsion Burnouts . | . . . . . . . . . . . . . . . . . . Robots Hopped 38 | . . . . . . . . 3 17 5 3 . 8 . 2 . . Cave-ins Triggered 1 | . . . . . . . . . 1 . . . . . . . . Teleports 1 | . . . . . . . . . . . . . . . . . 1 Exploration Rate (%) 46 | 8 29 77 44 71 73 19 23 34 33 58 54 66 40 22 68 50 62 Regions Visited 17 Branch Regions 11 Pre-discovered Areas 5 | . . . . . 1 . . . . . . . . . 1 . 3 Known Exits Taken 11 | . 1 . . . . . 1 1 1 1 1 1 1 1 1 1 . Unknown Exits Taken 6 | 1 . 1 1 1 1 1 . . . . . . . . . . . Scrap Searched 9 | . . 1 . 2 . 2 . . . . . . . . 3 1 . Spaces Dug 51 | . . . . . . . . 14 35 2 . . . . . . . Terrain Destroyed 162 | . . 25 . . . . . 14 36 31 . . . 56 . . . Melee 51 | . . . . . . . . 14 35 2 . . . . . . . Projectile 3 | . . . . . . . . . . . . . . 3 . . . AOE 107 | . . 25 . . . . . . . 29 . . . 53 . . . Terrain Rammed 1 | . . . . . . . . . 1 . . . . . . . . Walls Destroyed 1 | . . . . . . . . . 1 . . . . . . . . Machines Disabled . | . . . . . . . . . . . . . . . . . . Actions | -11 -10 -10 -9 -9 -9 -8 -8 -7 -6 -6 -6 -6 -6 -5 -5 -5 -5 --------- Run | Scr Mat Min Mat Min Exi Min Mat Fac Fac Ext Cet Arc Hub Fac Upp Upp Zhi Total 10457 | 295 238 348 1010 485 424 86 736 1850 1405 671 91 48 678 1108 493 230 261 Wait 1610 | 1 26 10 168 29 . 12 387 583 65 71 6 . 200 44 5 3 . Move 8004 | 233 191 313 660 436 422 62 280 1152 1238 565 83 47 453 956 478 222 213 Hop 32 | . . . . . . . . 3 13 5 2 . 7 . 2 . . Pick Up 168 | 20 5 4 39 4 1 1 12 31 7 3 . . 8 18 3 2 10 Fast Attach . | . . . . . . . . . . . . . . . . . . Attach 77 | 7 . 4 12 2 . . 6 12 3 2 . . 8 13 . 1 7 Detach 4 | . . . . . . . . . . 2 . . 1 1 . . . Swap 46 | 3 2 4 14 3 . . 4 4 2 4 . . . 2 2 . 2 Drop 99 | 5 3 3 26 2 1 1 8 22 5 3 . 1 1 8 3 1 6 Fire 71 | 26 11 10 9 . . . . . . 3 . . . 12 . . . Melee 271 | . . . 82 9 . 10 39 43 70 13 . . . . . 1 4 Ram 1 | . . . . . . . . . 1 . . . . . . . . Kick . | . . . . . . . . . . . . . . . . . . Crush . | . . . . . . . . . . . . . . . . . . Escape Stasis 74 | . . . . . . . . . 1 . . . . 54 . . 19 Rewire . | . . . . . . . . . . . . . . . . . . Trap . | . . . . . . . . . . . . . . . . . . Miscellaneous . | . . . . . . . . . . . . . . . . . . Route ------- -11/Scrapyard -10/Materials (discovered 3 exits: *Mat / *Min x2) -10/Mines -9/Materials -9/Mines (discovered 2 exits: *Mat / *Exi) -9/Exiles (discovered 2 exits: [*Min x2]) -8/Mines -8/Materials -7/Factory (discovered 3 exits: *Fac / Low x2) -6/Factory (discovered 6 exits: *Fac x2 / Low x2 / *Ext x2) -6/Extension (discovered 2 exits: *Fac / *Cet) -6/Cetus -6/Archives (discovered 2 exits: *Fac / *Hub) -6/Hub_04(d) -5/Factory -5/Upper Caves -5/Upper Caves (discovered 2 exits: *Fac / *Zhi) -5/Zhirov (discovered 1 exit: *Pro) History --------- Turn | Location | Event 5 | -11/Scrapyard | Discovered new exit (range 15) 290 | -11/Scrapyard | Entered Materials 314 | -10/Materials | Build established: Mutant 399 | -10/Materials | Identified exit to Mines 453 | -10/Materials | Discovered new exit (range 9) 506 | -10/Materials | Entered Mines 531 | -10/Mines | YI-UF0 nonchalantly dropped a Grenade Launcher on the ground 624 | -10/Mines | Assisted by bots powering up and referring to "LRC-V3" 639 | -10/Mines | Assembled infested the area 640 | -10/Mines | Found a damaged Exp. Sensor Array with a note attached 642 | -10/Mines | Found Prototype Device 644 | -10/Mines | Assisted by a Guerilla fighting off Assembled 669 | -10/Mines | Core integrity fell below 50% 677 | -10/Mines | Core integrity fell below 20% 700 | -10/Mines | Destroyed 20 combat bots 709 | -10/Mines | Lost 4 parts (1p1u2w) 730 | -10/Mines | Found the Drone Emporium 741 | -10/Mines | Found Prototype Device 797 | -10/Mines | Discovered new exit (range 7) 803 | -10/Mines | Entered Materials 803 | -9/Materials | Evolved 2 slots: Propulsion x1, Utility x1 1110 | -9/Materials | Build established: Scavenger-Mutant 1450 | -9/Materials | Identified Exp. Sensor Array 1604 | -9/Materials | Lost 5 parts (1p3n1u) 1646 | -9/Materials | Core integrity fell below 50% 1774 | -9/Materials | Discovered new exit (range 9) 1857 | -9/Materials | Entered Mines 1908 | -9/Mines | Learned Materials emergency access door positions 1996 | -9/Mines | Build established: Mutant 2123 | -9/Mines | Discovered new exit (range 5) 2145 | -9/Mines | Deemed a non-threat by the Exiles lab entrance 2146 | -9/Mines | Discovered new exit (range 5) 2148 | -9/Mines | Entered Exiles 2155 | -9/Exiles | Discovered new exit (range 16) 2168 | -9/Exiles | Met 8R-AWN 2176 | -9/Exiles | Met EX-HEX 2201 | -9/Exiles | Met EX-DEC 2219 | -9/Exiles | Learned location of Zion (-6) 2241 | -9/Exiles | Discovered new exit (range 14) 2270 | -9/Exiles | Met EX-BIN 2279 | -9/Exiles | Aligned with FarCom system 2279 | -9/Exiles | Given EX-Vault access code 2292 | -9/Exiles | Opened EX-Vault 2297 | -9/Exiles | Found 0b10 Alert Chip 2309 | -9/Exiles | Warned to stay clear of 0b10 Research branches 2369 | -9/Exiles | Left Exiles lab with 0b10 Alert Chip 2369 | -9/Exiles | Entered Mines 2438 | -8/Mines | Discovered new exit (range 5) 2440 | -8/Mines | Entered Materials 2440 | -8/Materials | Evolved 2 slots: Propulsion x1, Utility x1 2993 | -8/Materials | Lost 4 parts (1p3n) 3088 | -8/Materials | Discovered new exit (range 11) 3091 | -8/Materials | Identified exit to Factory 3092 | -8/Materials | Entered Factory 3092 | -7/Factory | Evolved 2 slots: Propulsion x1, Utility x1 3163 | -7/Factory | Identified exit to Lower Caves 3248 | -7/Factory | Fabricated Imp. EM Pulse Cannon? 3881 | -7/Factory | Repaired Broken Exp. Sensor Array 3914 | -7/Factory | Repaired Flail 4009 | -7/Factory | Repaired Imp. Flight Unit 4057 | -7/Factory | Repaired Xenon Bombardment Thruster 4265 | -7/Factory | Fabricated Imp. Cesium-ion Thruster (x1) 4292 | -7/Factory | Discovered new exit (range 15) 4300 | -7/Factory | Identified exit to Factory 4308 | -7/Factory | Entered another Factory area 4308 | -6/Factory | Evolved 2 slots: Utility x2 4319 | -6/Factory | Discovered new exit (range 7) 4321 | -6/Factory | Identified exit to Factory 4383 | -6/Factory | Discovered exit to Factory (range 10) 4574 | -6/Factory | Fabricated Adv. Component Analysis Suite? 4614 | -6/Factory | Build established: Scout 4695 | -6/Factory | Identified exit to Lower Caves 4695 | -6/Factory | Identified exit to Extension 4696 | -6/Factory | Fabricated Imp. Transmission Jammer? 4912 | -6/Factory | Crushed by falling debris 4924 | -6/Factory | Entered Extension 5053 | -6/Extension | Identified exit to Cetus 5071 | -6/Extension | Rescued a captive Derelict 5071 | -6/Extension | Rescued a captive Derelict 5163 | -6/Extension | Spotted B-75 Beast 5164 | -6/Extension | Spotted B-75 Beast 5195 | -6/Extension | Discovered exit to Factory (range 15) 5201 | -6/Extension | Lost 3 parts (2n1u) 5214 | -6/Extension | Entered Cetus 5219 | -6/Cetus | Spotted Cetus Guard 5220 | -6/Cetus | Spotted Cetus Guard 5220 | -6/Cetus | Spotted Cetus Guard 5228 | -6/Cetus | Spotted Cetus Guard 5244 | -6/Cetus | Discovered new exit (range 15) 5248 | -6/Cetus | Identified exit to Archives 5249 | -6/Cetus | Entered Archives 5255 | -6/Archives | Unable to access archive contents 5257 | -6/Archives | Discovered exit to Factory (range 13) 5262 | -6/Archives | Discovered new exit (range 13) 5265 | -6/Archives | Identified exit to Hub_04(d) 5266 | -6/Archives | Entered Hub_04(d) 5292 | -6/Hub_04(d) | Lost 5 parts (1n4u) 5568 | -6/Hub_04(d) | Spotted B-75 Beast 5569 | -6/Hub_04(d) | Core integrity fell below 50% 5590 | -6/Hub_04(d) | Build established: Mutant 5608 | -6/Hub_04(d) | Lost 3 parts (1n2u) 5629 | -6/Hub_04(d) | Discovered exit to Factory (range 15) 5657 | -6/Hub_04(d) | Entered Factory 5657 | -5/Factory | Evolved 2 slots: Utility x2 5669 | -5/Factory | Identified exit to DSF 6055 | -5/Factory | Fabricated Imp. Arc Projector? 6125 | -5/Factory | Discovered new exit (range 8) 6127 | -5/Factory | Identified exit to Upper Caves 6131 | -5/Factory | Build established: Hacker-Sprinter 6131 | -5/Factory | Entered Upper Caves 6131 | -5/Upper Caves | Accompanied by 1 ally 6203 | -5/Upper Caves | Attacked by a faux Warlord 6211 | -5/Upper Caves | Identified exit to Upper Caves 6224 | -5/Upper Caves | Encountered a Warlord checkpoint 6262 | -5/Upper Caves | Learned location of Armory (-4) 6281 | -5/Upper Caves | Attracted the attention of an 0b10 checkpoint 6284 | -5/Upper Caves | Entered another Upper Caves area 6284 | -5/Upper Caves | Discovered new exit (range 4) 6285 | -5/Upper Caves | Identified exit to Factory 6300 | -5/Upper Caves | Attracted the attention of an 0b10 outpost 6317 | -5/Upper Caves | Found Alien Artifact 6318 | -5/Upper Caves | Identified Dimensional Node Initializer 6318 | -5/Upper Caves | Initialized slip node 6353 | -5/Upper Caves | Discovered new exit (range 15) 6358 | -5/Upper Caves | Identified exit to Zhirov 6358 | -5/Upper Caves | Entered Zhirov 6358 | -5/Zhirov | Discovered new exit (range 3) 6359 | -5/Zhirov | Identified exit to Proximity Caves 6364 | -5/Zhirov | Met Zhirov 6370 | -5/Zhirov | Learned location of Quarantine (-2) 6370 | -5/Zhirov | Learned location of Testing (-3) 6370 | -5/Zhirov | Learned location of Command (-1) 6375 | -5/Zhirov | Zhirov requested help retrieving the SGEMP Prototype 6382 | -5/Zhirov | Found Alien Artifact 6383 | -5/Zhirov | Identified Transdimensional Reconstructor 6383 | -5/Zhirov | Warped through subspace 6402 | -5/Zhirov | Found Alien Artifact 6403 | -5/Zhirov | Identified Integrated Dissipator 6403 | -5/Zhirov | Installed Integrated Dissipator, increased core heat dissipation (+20) 6443 | -5/Zhirov | Attacked by Zhirov 6453 | -5/Zhirov | Core integrity fell below 50% 6463 | -5/Zhirov | Core integrity fell below 20% 6469 | -5/Zhirov | Cloak Generator disabled 6469 | -5/Zhirov | Destroyed by Svarog with Nova Cannon Last Messages --------------- 06433_ Destroyed Lgt. Nuclear Core. 06433_ E2-GSS(i) destroyed. 06436_ Acquired 52 matter. 06443_ System corrupted: Matter fused (-9). 06443_ Sneak attack on Zhirov. 06443_ Zhirov: "We're under attack!" 06443_ Zhirov's Workstation disabled. 06443_ Propulsion Shielding destroyed. 06443_ Xenon Bombardment Thruster destroyed. 06443_ Lgt. Fission Core destroyed. 06444_ Held in stasis. 06449_ Phasing Sabre destroyed. 06452_ Seismic Detector destroyed. 06453_ Held in stasis. 06455_ Cld. VTOL Module destroyed. 06458_ Held in stasis. 06459_ Cld. VTOL Module destroyed. 06463_ Held in stasis. 06469_ Cloak Generator disabled. 06469_ Held in stasis. Map ----- +----------------------------------------------------+ | | | | | | | | | | | | | ????????????????????????????????????????????????? | | ????????????????????????????????????????????????? | | ????????????????????????????????????????????????? | | ????????????????????????????????????????????????? | | ????????????????????????????????????????????????? | | ????????????????????????????????????????????????? | | ????????????????????????????????????????????????? | | ????????????????????????????????????????????????? | | ????????????????????????????????????????????????? | | ??????????????????????????#""#??????????????????? | | ?????????????????????????##""##?????????????????? | | ???????????????????###??##""""##????????????????? | | ???????????######### ##?#""""""#??????#####?????? | | ???????????#"""" "" #?# """" #?????## ###???? | | ???#######?#" " P ### ##?#### > ##??? | | ???#"X"X"#?#" 1 ### #??? | | ???#X X#?#" #??? | | ???#" "#### S #??? | | ???#"" ###### ###??? | | ???#####+#### ###@ ##????#######????? | | ???????# #?#"" #?# """ #????????????????? | | ???##### #?##" #### ##?#""""""#????????????????? | | ???# + #??#" #??###??##""""##????????????????? | | ???# ###??## #????????##""##?????????????????? | | ???#XXX#?????# #?????????#""#??????????????????? | | ???#####?????# #??????????""???????????????????? | | ??????######## ########????????????????????????? | | ??????#"X # # """"#????????????????????????? | | ??????#" # # """"#????????????????????????? | | ??????#"" # # """#????????????????????????? | | ??????#"" + + ""#????????????????????????? | | ??????#"" ""# # """#????????????????????????? | | ??????#"""""# # """"#????????????????????????? | | ??????#"""""# #X""""#????????????????????????? | | ??????########++########????????????????????????? | | ??????#" """"#????????????????????????? | | ??????#"" ! "#????????????????????????? | | ??????#" " " " !" "#????????????????????????? | | ??????# " !" " "* "#????????????????????????? | | ??????# " !" " " "#????????????????????????? | | ??????##################????????????????????????? | | ????????????????????????????????????????????????? | | ????????????????????????????????????????????????? | | ????????????????????????????????????????????????? | +----------------------------------------------------+ Best States ------------- Heat Dissipation 60 Coolant Potential 50 Energy Generation 18 Energy Capacity 265 Matter Stores 300 Matter Capacity 300 Sight Range 18 Robot Scan Range 20 Terrain Scan Range 14 Terrain Scan Density 10 Additional Mass Support 9 Armor Coverage 150 Resistance: KI 25 Power Shielding 90 Propulsion Shielding 33 Utility Shielding 66 Phase Shifting 5 Evasion (%) 72 Melee Accuracy 12 Core Analysis 6 Offensive Hacking 14 Defensive Hacking 24 Item Schematics ----------------- Q-thruster | -5/Factory | Hacked Assault Drone Bay | -5/Zhirov | Free Exp. Heat Sink | -5/Zhirov | Free Exp. Optical Array | -5/Zhirov | Free Imp. Arc Thrower | -5/Zhirov | Free Robot Schematics ------------------ None Fabricated ------------ Imp. EM Pulse Cannon | x1 | -7/Factory | Preloaded Imp. Cesium-ion Thruster | x1 | -7/Factory | Preloaded Adv. Component Analysis Suite | x1 | -6/Factory | Preloaded Imp. Transmission Jammer | x1 | -6/Factory | Preloaded Imp. Arc Projector | x1 | -5/Factory | Preloaded Alien Tech Used ----------------- Dimensional Node Initializer Transdimensional Reconstructor Integrated Dissipator Achievements -------------- Killing Spree Challenges ------------ None Game ------ Seed AutogunPhaseFacilitator Manual? 0 Play Time 01:58:45 Cumulative 93.7 hours Start 2022.11.11 @ 19:22:51 End 2022.11.11 @ 21:59:13 Sessions 2 Manual Loads 0 Difficulty Rogue Special Mode None Game No. 96 Rogue 96 Adventurer 0 Explorer 0 Win Type - Total 0 Types 0/0/0/0/0/0/0/0/0 Lore% 60 Gallery% 49 Achievement% 42 Wizard Run 0 Options --------- ASCII 0 Keyboard 0 Movement Numpad Keybinds 0 Fullscreen 2 Font 18/SmallcapsGlow Map View 76x50 Tactical HUD 1 Map Filters NONE Filters NONE Steam 1 RUN: d7344162-2c35-451f-9cf4-d20ad49109e2